bitfinex/quotes_ETHUSD_20250223
["timestamp","ask_amount","ask_price","bid_price","bid_amount"]
[1740275784527,4.38635,2770.2,2770.0,0.257]
[1740275785033,3.61017,2770.0,2769.7,5.39]
[1740275785233,3.61028,2769.9,2769.6,7.373]
[1740275785422,4.38668,2769.9,2769.7,0.257]
[1740275786447,0.7764,2769.9,2769.7,0.257]
[1740275788353,0.7764,2769.9,2769.8,0.73730786]
[1740275791517,4.38633,2770.2,2769.8,0.73730786]
[1740275792648,0.7764,2770.2,2769.8,0.73730786]
[1740275792846,0.7764,2770.2,2769.8,4.34766786]
[1740275793553,0.7764,2770.2,2769.8,0.73730786]
[1740275794247,3.60974,2770.3,2769.8,0.73730786]
[1740275796156,0.8124,2770.4,2770.0,3.60999]
[1740275796343,3.0,2770.5,2770.0,3.60999]
[1740275796550,3.60958,2770.4,2770.1,0.3897]
[1740275796863,3.60958,2770.4,2769.9,0.3897]
[1740275797154,6.60952,2770.5,2769.9,0.3897]
[1740275797461,4.37213,2770.3,2769.9,0.3897]
[1740275797760,0.7624,2770.3,2770.0,3.61009]
[1740275798059,4.37213,2770.3,2769.9,0.3897]
[1740275800364,4.37213,2770.3,2769.8,0.73730786]
[1740275800569,3.60987,2770.2,2769.8,0.73730786]
[1740275800866,3.60997,2770.1,2769.8,0.73730786]
[1740275801071,3.61013,2770.0,2769.8,0.73730786]
[1740275801371,3.60998,2770.1,2769.8,0.73730786]
[1740275802269,3.60998,2770.1,2769.7,0.257]
[1740275802570,3.61014,2770.0,2769.7,0.257]
[1740275802769,3.61036,2769.8,2769.7,0.257]
[1740275803134,3.61051,2769.7,2769.3,7.374]
[1740275803356,3.61072,2769.6,2769.4,0.257]
[1740275804672,3.61038,2769.8,2769.4,0.257]
[1740275804873,3.61051,2769.7,2769.4,0.257]
[1740275805375,3.61,2770.1,2769.3,7.374]
[1740275805376,4.41873,2769.5,2769.3,7.374]
[1740275805576,3.6107,2769.6,2769.3,7.374]
[1740275806083,7.22141,2769.6,2769.3,7.374]
[1740275806482,3.61076,2769.5,2769.3,7.374]
[1740275806682,7.22142,2769.6,2769.3,7.374]
[1740275806889,3.6107,2769.6,2769.3,7.374]
[1740275807401,7.22143,2769.6,2769.3,7.374]
[1740275807695,3.6107,2769.6,2769.3,7.374]
[1740275808844,4.4184,2769.7,2769.3,8.498227]
[1740275809044,3.61031,2769.9,2769.4,0.3897]
[1740275809644,7.22065,2769.9,2769.4,0.3897]
[1740275809985,3.61031,2769.9,2769.4,0.3897]
[1740275810176,3.61038,2769.8,2769.4,0.3897]
[1740275810678,5.23960535,2769.9,2769.4,0.3897]
[1740275811584,8.84992535,2769.9,2769.4,0.3897]
[1740275812186,5.23960535,2769.9,2769.4,0.3897]
[1740275812387,8.84994535,2769.9,2769.4,0.3897]
[1740275812788,5.23960535,2769.9,2769.4,0.3897]
[1740275813082,8.84996535,2769.9,2769.4,0.3897]
[1740275813281,5.23960535,2769.9,2769.4,0.3897]
[1740275814187,3.61038,2769.8,2769.4,0.3897]
[1740275814852,1.62929535,2769.9,2769.4,0.3897]
[1740275815187,5.23953535,2769.9,2769.4,0.3897]
[1740275816954,0.8079,2770.0,2769.4,0.815464]
[1740275817154,1.62929535,2770.1,2769.6,3.61056]
[1740275819391,1.62929535,2770.1,2769.5,3.61066]
[1740275819956,4.43451,2770.2,2769.5,3.61066]
[1740275820156,4.43451,2770.2,2769.7,3.61048]
[1740275820351,0.8246,2770.2,2769.8,0.3897]
[1740275820667,4.43451,2770.2,2769.8,0.3897]
[1740275823510,3.8246,2770.2,2769.8,0.3897]
[1740275823999,7.43448,2770.2,2769.8,0.3897]
[1740275824498,3.61005,2770.1,2769.8,0.3897]
[1740275825158,3.61005,2770.1,2769.6,3.61062]
[1740275825495,3.61005,2770.1,2769.6,4.722448]
[1740275827797,3.60997,2770.1,2769.7,3.61049]
[1740275828200,3.60997,2770.1,2769.6,1.111828]
[1740275828358,3.60997,2770.1,2769.6,4.722428]
[1740275840610,5.23926535,2770.1,2769.6,4.0003]
[1740275841308,3.61012,2770.0,2769.6,4.0003]
[1740275841471,1.62929535,2770.1,2769.6,0.3897]
[1740275841677,7.22086,2769.8,2769.6,0.3897]
[1740275841877,3.61049,2769.7,2769.6,0.3897]
[1740275844231,5.23978535,2769.7,2769.6,0.3897]
[1740275845724,1.62929535,2769.7,2769.1,5.647]
[1740275845931,1.62929535,2769.5,2769.1,0.257]
[1740275846226,3.61089,2769.4,2769.1,0.257]
[1740275847029,3.61089,2769.4,2768.9,3.61147]
[1740275847275,5.24007535,2769.5,2769.1,0.257]
[1740275847635,3.61078,2769.5,2769.1,0.257]
[1740275849036,3.61065,2769.6,2769.1,3.86824]
[1740275849437,3.61065,2769.6,2769.1,0.257]
[1740275849662,7.22136,2769.6,2769.1,0.257]
[1740275849870,3.61076,2769.5,2769.2,0.53555187]
[1740275850076,3.61076,2769.5,2769.2,0.79255187]
[1740275852589,5.23979535,2769.7,2769.2,0.79255187]
[1740275852793,5.23979535,2769.7,2769.2,4.40367187]
[1740275852979,3.6105,2769.7,2769.2,4.40367187]
[1740275853496,3.6105,2769.7,2769.2,4.40362187]
[1740275853796,4.62929535,2769.9,2769.4,3.61081]
[1740275853965,10.47936535,2770.1,2769.5,0.3897]
[1740275854454,6.61011,2770.0,2769.5,0.3897]
[1740275854881,3.0,2770.0,2769.5,4.00038]
[1740275855082,6.61013,2770.0,2769.5,4.00038]
[1740275855280,6.61013,2770.0,2769.5,0.3897]
[1740275857506,1.62929535,2769.9,2769.5,0.3897]
[1740275858398,2.39869535,2769.9,2769.5,0.3897]
[1740275858603,6.00899535,2769.9,2769.3,4.0007]
[1740275859118,9.61931535,2769.9,2769.3,4.67436622]
[1740275859289,6.00899535,2769.9,2769.3,4.67436622]
[1740275859608,6.00899535,2769.9,2769.4,0.257]
[1740275860777,3.61043,2769.8,2769.4,0.257]
[1740275861580,3.61047,2769.8,2769.4,0.257]
[1740275862604,6.00899535,2769.9,2769.4,0.257]
[1740275862770,1.62929535,2769.9,2769.5,0.3897]
[1740275863602,3.61037,2769.8,2769.5,0.3897]
[1740275868617,3.61057,2769.7,2769.5,0.3897]
[1740275869211,0.71427796,2769.6,2769.5,0.3897]
[1740275870412,0.71427796,2769.6,2769.4,0.9911632]
[1740275871288,0.71427796,2769.6,2769.4,0.7341632]
[1740275871289,3.61076,2769.5,2769.4,0.7341632]
[1740275871493,5.24005535,2769.5,2769.1,0.3897]
[1740275871694,3.61099,2769.4,2769.1,0.3897]
[1740275872481,3.61099,2769.4,2769.1,0.81552]
[1740275873812,5.24005535,2769.5,2769.1,0.81552]
[1740275875532,3.6109,2769.4,2769.1,0.81552]
[1740275876435,3.6109,2769.4,2769.1,0.3897]
[1740275882898,7.22189,2769.4,2769.1,0.3897]
[1740275883107,2.44099535,2769.3,2769.0,0.257]
[1740275883634,3.61124,2769.2,2769.0,0.257]
[1740275884614,3.61124,2769.2,2768.6,3.61186]
[1740275884615,1.62929535,2769.1,2768.6,3.61186]
[1740275884843,5.24067535,2769.1,2768.7,0.257]
[1740275885034,1.62929535,2769.1,2768.7,0.257]
[1740275885510,1.62929535,2769.1,2768.7,3.86879]
[1740275888445,5.24062535,2769.1,2768.7,0.257]
[1740275889633,0.8117,2769.3,2768.5,7.63981595]
[1740275889634,1.62929535,2768.9,2768.5,7.375]
[1740275889814,3.61174,2768.8,2768.6,0.257]
[1740275890735,3.6119,2768.7,2768.5,7.375]
[1740275891049,3.61193,2768.6,2768.5,7.375]
[1740275892389,3.6118,2768.7,2768.5,7.375]
[1740275892551,3.61193,2768.6,2768.5,7.375]
[1740275892913,3.61182,2768.7,2768.5,7.375]
[1740275893150,7.22372,2768.7,2768.5,7.375]
[1740275893650,3.61182,2768.7,2768.5,7.375]
[1740275893848,1.62929535,2768.6,2768.5,7.375]
[1740275894054,6.03402535,2768.6,2768.5,7.375]
[1740275895456,3.61213,2768.5,2768.0,0.6467]
[1740275896050,6.03402535,2768.6,2768.0,0.6467]
[1740275896051,1.62929535,2768.4,2768.0,0.6467]
[1740275896358,0.7928,2768.6,2768.0,0.6467]
[1740275896359,6.03403535,2768.6,2768.0,4.2594]
[1740275896551,6.03403535,2768.6,2768.0,0.6467]
[1740275896719,2.42209535,2768.6,2768.0,0.6467]
[1740275896925,2.42209535,2768.6,2768.0,4.25937]
[1740275897528,4.62929535,2768.8,2768.0,1.07800272]
[1740275897740,4.62929535,2768.8,2768.1,4.0022]
[1740275897741,8.24096535,2768.8,2768.1,4.0022]
[1740275897943,5.24096535,2768.8,2768.2,3.61238]
[1740275898636,5.24096535,2768.8,2768.1,4.00227]
[1740275898857,1.62929535,2768.8,2768.2,3.61244]
[1740275899048,1.62929535,2768.8,2768.1,4.00227]
[1740275899361,5.24099535,2768.8,2768.1,4.428197]
[1740275903568,5.24099535,2768.8,2768.1,4.428127]
[1740275906665,1.62929535,2768.8,2768.2,3.61245]
[1740275908174,1.62929535,2768.8,2768.1,4.428127]
[1740275908175,0.8268,2768.9,2768.1,0.815627]
[1740275908379,0.8268,2768.9,2768.4,0.3897]
[1740275909037,0.8268,2768.9,2768.4,4.00186]
[1740275909242,3.61123,2769.2,2768.9,3.61154]
[1740275909243,0.7551,2769.2,2768.9,3.61154]
[1740275909442,0.7551,2769.2,2768.7,4.00147]
[1740275909980,0.7551,2769.2,2768.7,7.6132]
[1740275910160,0.7551,2769.2,2768.8,3.61158]
[1740275910366,6.86929535,2769.5,2769.0,3.6114]
[1740275910558,0.7551,2769.4,2769.0,3.61132]
[1740275911551,0.7551,2769.4,2768.8,3.86858]
[1740275911886,0.7551,2769.4,2768.9,3.61151]
[1740275918462,0.7551,2769.4,2769.0,3.61133]
[1740275918791,0.7551,2769.4,2769.3,0.7187257]
[1740275922460,4.91599,2769.4,2769.3,0.7187257]
[1740275926496,10.15599,2769.4,2769.3,0.7187257]
[1740275932791,5.9951,2769.4,2769.3,0.7187257]
[1740275933101,5.24,2769.4,2769.3,0.7187257]
[1740275933884,8.85089,2769.4,2769.3,0.7187257]
[1740275934573,9.63609,2769.4,2769.3,0.7187257]
[1740275938406,4.39609,2769.4,2769.3,0.7187257]
[1740275939779,4.94609,2769.4,2769.3,0.7187257]
[1740275943494,0.55,2769.4,2769.0,0.3897]
[1740275943705,4.16089,2769.4,2769.0,0.3897]
[1740275944291,9.40089,2769.4,2769.0,0.3897]
[1740275944692,9.40089,2769.4,2769.1,0.72744629]
[1740275946516,1.62929535,2769.3,2769.1,0.72744629]
[1740275953022,4.37195,2769.2,2769.1,0.72744629]
[1740275955226,0.7608,2769.2,2769.1,0.72744629]
[1740275966420,1.62929535,2769.3,2769.1,0.72744629]
[1740275979083,1.62929535,2769.3,2769.0,0.3897]
[1740275981646,1.62929535,2769.3,2769.0,4.00103]
[1740275981849,1.62929535,2769.3,2769.0,0.3897]
[1740275982244,1.62929535,2769.3,2769.1,0.70766826]
[1740275983334,1.62929535,2769.3,2768.8,4.00127]
[1740275983538,0.8168,2769.2,2768.8,4.788282]
[1740275984240,0.8168,2769.2,2768.6,3.86883]
[1740275984438,0.8168,2769.2,2768.7,3.61178]
[1740275984972,0.8168,2769.2,2768.6,0.257]
[1740275985138,0.8168,2769.2,2768.7,0.33881763]
[1740275985463,0.8168,2769.2,2768.8,0.7207585]
[1740275986382,0.8168,2769.2,2768.9,0.33881763]
[1740275987893,0.8168,2769.2,2768.8,0.7207585]
[1740275990299,0.8168,2769.2,2768.9,0.33883177]
[1740275992001,0.8168,2769.2,2768.8,0.7207585]
[1740275994299,0.8168,2769.2,2768.9,0.33884814]
[1740275994670,4.98721,2769.0,2768.9,0.33884814]
[1740275996201,1.3758,2768.8,2768.7,0.71857109]
[1740275996500,3.00509535,2768.8,2768.3,0.33884814]
[1740275996888,3.00509535,2768.8,2768.2,3.61242]
[1740275997569,3.00509535,2768.8,2768.1,4.25917]
[1740275997770,3.00509535,2768.8,2768.3,3.61225]
[1740275998074,3.00509535,2768.8,2768.3,7.22449]
[1740275998293,5.24,2768.9,2768.2,0.3897]
[1740275998469,5.24,2768.9,2768.6,0.72718853]
[1740276000076,5.24,2768.9,2768.6,4.33903853]
[1740276000410,2.45029535,2769.0,2768.6,4.33903853]
[1740276000723,2.45029535,2769.0,2768.7,0.33840631]
[1740276002321,2.45029535,2769.0,2768.6,0.72718853]
[1740276003705,1.62929535,2768.8,2768.6,0.72718853]
[1740276008722,2.45029535,2769.0,2768.6,0.72718853]
[1740276009321,2.45029535,2769.0,2768.6,1.11688853]
[1740276009894,2.45029535,2769.0,2768.6,4.72877853]
[1740276010220,1.62929535,2769.0,2768.6,4.72877853]
[1740276010437,5.24,2769.2,2768.7,3.95011833]
[1740276010724,5.24,2769.2,2768.8,3.6116]
[1740276010918,5.24,2769.2,2768.7,3.95011833]
[1740276011090,5.24,2769.2,2768.9,3.61152]
[1740276011288,3.0,2769.3,2768.9,3.61152]
[1740276011475,1.62929535,2769.2,2768.7,7.56180833]
[1740276011822,1.62929535,2769.2,2768.7,8.5130857]
[1740276012125,1.62929535,2769.2,2768.7,8.17467737]
[1740276012271,1.62929535,2769.2,2768.8,3.61165]
[1740276015026,1.62929535,2769.2,2768.9,0.33845117]
[1740276016189,1.62929535,2769.2,2768.8,3.61165]
[1740276016409,1.62929535,2769.2,2768.8,4.54080059]
[1740276017250,7.62719535,2769.4,2768.9,3.61154]
[1740276017571,7.62719535,2769.4,2768.9,4.00124]
[1740276018839,7.62719535,2769.4,2769.1,0.72746734]
[1740276019342,5.24,2769.4,2769.2,3.61106]
[1740276019543,0.8143,2769.9,2769.4,3.61078]
[1740276019717,1.62929535,2769.8,2769.4,3.61078]
[1740276023535,1.62929535,2769.8,2769.4,7.2216]
[1740276023942,1.62929535,2769.8,2769.7,0.71391375]
[1740276025361,1.62929535,2769.8,2769.4,3.61087]
[1740276025573,1.62929535,2769.8,2769.4,4.41541727]
[1740276029166,1.62929535,2769.8,2769.5,0.72688355]
[1740276035726,1.62929535,2769.8,2769.5,4.33761355]
[1740276037040,0.8143,2769.9,2769.5,4.33761355]
[1740276037227,5.24,2770.0,2769.6,4.00025]
[1740276037399,5.24,2770.0,2769.7,3.61042]
[1740276037712,5.24,2770.0,2769.7,3.86742]
[1740276039411,0.7743,2770.1,2769.7,3.86742]
[1740276039412,3.7743,2770.1,2769.7,3.86742]
[1740276039617,1.62929535,2770.0,2769.7,3.86742]
[1740276040567,0.7743,2770.1,2769.7,3.86742]
[1740276040716,0.7743,2770.1,2769.7,7.47785]
[1740276041045,0.7743,2770.1,2769.7,3.86742]
[1740276041262,0.7743,2770.1,2769.7,3.8674]
[1740276041458,0.7743,2770.1,2769.7,4.44917709]
[1740276041663,0.7743,2770.1,2769.7,8.05957709]
[1740276042149,0.7743,2770.1,2769.7,0.83877709]
[1740276042350,6.86929535,2770.2,2769.9,3.61014]
[1740276043340,1.62929535,2770.2,2769.8,3.61036]
[1740276043761,1.62929535,2770.2,2769.7,0.257]
[1740276044055,1.62929535,2770.2,2769.7,3.86738]
[1740276044349,1.62929535,2770.2,2769.8,3.6103]
[1740276044553,1.62929535,2770.2,2769.8,4.12403232]
[1740276046419,4.38463,2769.9,2769.2,0.82355273]
[1740276046753,0.7743,2769.5,2769.2,0.43385273]
[1740276046916,0.7743,2769.5,2769.2,0.68985273]
[1740276048669,0.7743,2769.5,2769.4,0.72355101]
[1740276053471,0.7743,2769.5,2768.8,0.92915059]
[1740276053675,0.7743,2769.5,2768.7,7.632]
[1740276053676,1.62929535,2769.2,2768.7,7.632]
[1740276054196,1.62929535,2769.2,2768.8,0.33814968]
[1740276055400,1.62929535,2769.2,2768.7,11.2437]
[1740276055562,1.62929535,2769.2,2768.7,12.768225]
[1740276055763,0.7953,2769.3,2768.8,3.61156]
[1740276056100,0.7953,2769.3,2769.1,3.61119]
[1740276056856,0.7953,2769.3,2769.1,3.61128]
[1740276057301,0.7953,2769.3,2769.0,0.72334115]
[1740276058924,1.62929535,2769.2,2769.0,0.72334115]
[1740276060933,0.7996,2769.1,2769.0,0.72334115]
[1740276071397,0.8149,2769.3,2769.0,0.72334115]
[1740276071800,4.42592,2769.3,2769.0,0.72334115]
[1740276072222,0.55,2769.4,2769.0,0.72334115]
[1740276072537,0.55,2769.4,2769.0,4.72438115]
[1740276075868,6.0242,2769.5,2769.0,1.11304115]
[1740276076044,5.24,2769.5,2769.4,4.00059]
[1740276076253,0.7842,2770.1,2769.9,3.61022]
[1740276076739,0.7842,2770.1,2769.9,3.61019]
[1740276077238,3.0,2770.2,2769.9,3.61019]
[1740276077434,6.012,2770.3,2769.9,7.22035]
[1740276077641,6.012,2770.3,2769.9,3.61016]
[1740276078581,3.0,2770.2,2769.9,3.61016]
[1740276078883,3.0,2770.2,2769.9,4.32657142]
[1740276079457,6.012,2770.3,2769.9,4.32656142]
[1740276079658,5.24,2770.3,2769.9,4.79818856]
[1740276079988,5.24,2770.3,2770.0,3.60999]
[1740276083928,0.55,2770.4,2770.0,3.60999]
[1740276084282,0.55,2770.4,2769.9,8.40835856]
[1740276084482,4.15959,2770.4,2769.9,4.79818856]
[1740276087825,7.76928,2770.4,2769.9,4.79818856]
[1740276088040,4.15959,2770.4,2769.9,4.79818856]
[1740276088946,4.15959,2770.4,2769.9,1.18803856]
[1740276089157,0.772,2770.1,2769.5,0.3897]
[1740276089445,4.38251,2769.7,2769.4,0.256]
[1740276089848,4.38251,2769.7,2769.5,0.7362207]
[1740276090350,3.61084,2769.5,2769.3,0.256]
[1740276090500,3.61069,2769.6,2769.3,0.256]
[1740276091549,0.772,2769.7,2769.3,0.256]
[1740276091716,0.55,2769.8,2769.4,4.00051]
[1740276092604,0.55,2769.8,2769.4,4.7370199]
[1740276093044,0.55,2769.8,2769.4,1.1262099]
[1740276093250,4.16047,2769.8,2769.4,0.7365099]
[1740276095040,3.6105,2769.7,2769.4,0.7365099]
[1740276096152,3.61076,2769.5,2769.4,0.7365099]
[1740276096457,4.37206,2769.5,2769.4,0.7365099]
[1740276097351,0.7613,2769.5,2769.4,0.7365099]
[1740276098024,4.3733,2769.7,2769.4,0.7365099]
[1740276098226,0.7628,2769.7,2769.4,0.7365099]
[1740276099451,4.3734,2769.7,2769.4,0.7365099]
[1740276099651,3.61072,2769.6,2769.4,0.7365099]
[1740276100985,0.7628,2769.7,2769.4,0.7365099]
[1740276101776,4.37333,2769.7,2769.4,0.7365099]
[1740276103540,3.61074,2769.6,2769.4,0.7365099]
[1740276104882,4.37333,2769.7,2769.4,0.7365099]
[1740276105185,3.61076,2769.5,2769.4,0.7365099]
[1740276106235,3.61063,2769.6,2769.4,0.7365099]
[1740276106440,4.3733,2769.7,2769.4,0.7365099]
[1740276107213,7.98391,2769.7,2769.4,0.7365099]
[1740276107360,4.3733,2769.7,2769.4,0.7365099]
[1740276107908,3.61063,2769.6,2769.4,0.7365099]
[1740276110606,0.7628,2769.7,2769.4,0.7365099]
[1740276111707,0.7628,2769.7,2769.4,4.82105089]
[1740276111910,5.24,2769.9,2769.8,3.61036]
[1740276113209,4.40143,2770.5,2769.9,3.61015]
[1740276113703,7.40143,2770.5,2770.0,0.3897]
[1740276113862,11.01098,2770.5,2770.0,3.99975]
[1740276114204,7.40143,2770.5,2770.0,3.99975]
[1740276114662,3.7919,2770.5,2770.0,3.99975]
[1740276114868,3.7919,2770.5,2770.1,3.60995]
[1740276115606,3.0,2770.5,2770.1,3.60995]
[1740276116309,3.0,2770.5,2770.1,4.31797795]
[1740276116462,3.60957,2770.5,2770.1,1.49459795]
[1740276116662,0.7919,2770.4,2770.1,0.96402795]
[1740276116969,4.40156,2770.4,2770.1,0.96402795]
[1740276117305,0.7919,2770.4,2770.1,0.96402795]
[1740276117499,1.3548,2770.6,2770.1,0.96402795]
[1740276118276,1.3548,2770.6,2770.1,4.57389795]
[1740276118482,1.3548,2770.6,2770.1,5.43125575]
[1740276119211,1.3548,2770.6,2770.2,3.60984]
[1740276119371,0.8048,2770.6,2770.2,3.60984]
[1740276121412,3.60921,2770.7,2770.3,0.3897]
[1740276123629,5.24,2770.8,2770.3,3.9994]
[1740276123912,5.24,2770.8,2770.5,3.60937]
[1740276124086,0.8048,2770.9,2770.5,3.60937]
[1740276124293,3.8048,2770.9,2770.5,3.60937]
[1740276124607,3.8048,2771.2,2770.5,0.3897]
[1740276124821,3.6087,2771.1,2770.6,3.60929]
[1740276125213,3.0,2770.9,2770.5,0.3897]
[1740276125546,4.41386,2770.8,2770.3,0.3897]
[1740276125820,3.60939,2770.6,2770.1,0.96402795]
[1740276126199,3.60939,2770.6,2770.1,4.57393795]
[1740276127814,3.60939,2770.6,2770.2,3.60984]
[1740276127989,3.60939,2770.6,2770.2,4.4671998]
[1740276128313,3.60939,2770.6,2770.2,0.8573598]
[1740276130510,7.2188,2770.6,2770.2,0.8573598]
[1740276130713,3.60939,2770.6,2770.2,0.8573598]
[1740276135282,7.21881,2770.6,2770.2,0.8573598]
[1740276135481,7.21881,2770.6,2770.1,0.96402795]
[1740276135783,3.60939,2770.6,2770.1,0.96402795]
[1740276136323,3.60939,2770.6,2770.1,4.57397795]
[1740276136717,3.60939,2770.6,2770.1,0.96402795]
[1740276137018,4.43013,2770.5,2770.1,0.96402795]
[1740276137219,4.43013,2770.5,2770.1,1.46040374]
[1740276138116,4.43013,2770.5,2770.0,0.256]
[1740276138117,3.60958,2770.4,2770.0,0.256]
[1740276138513,3.60958,2770.4,2770.0,0.98840902]
[1740276139424,3.60959,2770.4,2770.0,0.98840902]
[1740276139627,3.60971,2770.4,2770.0,0.98840902]
[1740276140012,3.60978,2770.3,2770.0,0.98840902]
[1740276140794,3.60997,2770.1,2770.0,0.73240902]
[1740276140997,3.61044,2769.8,2769.4,0.86342099]
[1740276141217,3.61017,2770.0,2769.5,0.99664971]
[1740276141412,4.41493,2770.2,2769.9,0.33797488]
[1740276141603,5.24,2770.3,2769.9,3.94815488]
[1740276141923,5.24,2770.3,2769.9,0.33797488]
[1740276142125,3.6101,2770.0,2769.9,0.33797488]
[1740276142429,0.805,2770.1,2769.9,0.33797488]
[1740276142616,6.045,2770.3,2769.9,0.33797488]
[1740276142797,3.60984,2770.2,2769.9,0.33797488]
[1740276143129,7.21978,2770.2,2769.7,0.3897]
[1740276143337,3.60984,2770.2,2769.7,4.53362746]
[1740276143540,9.65473,2770.3,2769.8,3.61033]
[1740276143695,8.84973,2770.3,2769.8,3.61033]
[1740276143893,5.24,2770.3,2769.8,3.61033]
[1740276144092,5.24,2770.3,2769.9,0.33797488]
[1740276144336,8.84979,2770.3,2769.9,0.33797488]
[1740276145094,4.41492,2770.2,2769.9,0.33797488]
[1740276145633,4.41492,2770.2,2769.7,0.3897]
[1740276145834,3.60998,2770.1,2769.7,0.3897]
[1740276147029,0.805,2770.2,2769.8,0.33816566]
[1740276147237,4.41493,2770.2,2769.8,0.33816566]
[1740276148038,3.61007,2770.1,2769.8,0.33816566]
[1740276148270,3.61007,2770.1,2769.7,0.3897]
[1740276149126,3.61007,2770.1,2769.7,1.25045897]
[1740276150964,3.61007,2770.1,2769.8,0.33807727]
[1740276151271,7.22012,2770.1,2769.8,0.33807727]
[1740276151453,3.61005,2770.1,2769.8,0.33807727]
[1740276152053,3.61005,2770.1,2769.7,1.25045897]
[1740276152255,3.61012,2770.0,2769.6,0.256]
[1740276153468,3.61012,2770.0,2769.7,0.33804814]
[1740276153765,0.805,2770.2,2769.7,0.33804814]
[1740276154072,4.39474,2769.9,2769.7,0.33804814]
[1740276154947,4.94456,2770.1,2769.7,0.33804814]
[1740276155143,3.61011,2770.0,2769.7,0.33804814]
[1740276155337,3.61011,2770.0,2769.6,0.3897]
[1740276158365,4.94454,2770.1,2769.6,4.00032]
[1740276158683,4.94449,2770.1,2769.6,0.3897]
[1740276160402,1.3345,2770.1,2769.6,0.3897]
[1740276160588,4.94448,2770.1,2769.7,3.61048]
[1740276160766,4.94448,2770.1,2769.6,0.3897]
[1740276160969,4.94448,2770.1,2769.6,4.00032]
[1740276161501,3.61017,2770.0,2769.7,0.33804627]
[1740276162105,4.94448,2770.1,2769.7,0.33804627]
[1740276162300,4.94448,2770.1,2769.6,4.0003]
[1740276162510,6.60986,2770.2,2769.7,3.61047]
[1740276163593,6.60986,2770.2,2769.6,4.47439497]
[1740276164438,6.60986,2770.2,2769.6,8.08493497]
[1740276164747,6.60986,2770.2,2769.6,8.08488497]
[1740276165049,6.60986,2770.2,2769.7,0.33822681]
[1740276165334,6.60986,2770.2,2769.7,3.94871681]
[1740276165833,3.0,2770.2,2769.7,3.94871681]
[1740276166498,3.0,2770.2,2769.8,0.33822681]
[1740276167302,3.0,2770.2,2769.8,3.94857681]
[1740276167502,3.0,2770.2,2769.9,0.3897]
[1740276167836,3.0,2770.2,2769.9,0.72792681]
[1740276168959,6.0144,2770.3,2770.0,3.61005]
[1740276169134,5.24,2770.3,2769.9,4.33809681]
[1740276169454,5.24,2770.3,2770.0,3.61002]
[1740276169628,5.24,2770.3,2770.0,4.34371024]
[1740276170231,5.24,2770.3,2770.2,3.60984]
[1740276170470,5.24,2770.3,2770.2,3.99954]
[1740276171789,5.24,2770.3,2770.2,4.33797528]
[1740276172095,5.24,2770.3,2770.2,1.26090183]
[1740276172246,5.24,2770.3,2770.2,0.33843528]
[1740276172972,4.38373,2770.6,2770.2,0.33843528]
[1740276173878,0.7744,2770.6,2770.2,3.94826528]
[1740276174101,3.0,2770.7,2770.3,3.60963]
[1740276177185,3.0,2770.7,2770.4,0.3897]
[1740276178793,3.0,2770.7,2770.5,0.72148663]
[1740276179494,3.0,2770.7,2770.5,4.33087663]
[1740276179681,0.7984,2771.0,2770.5,0.72148663]
[1740276179999,4.40724,2771.0,2770.5,0.72148663]
[1740276180550,3.60895,2770.9,2770.5,0.72148663]
[1740276185463,3.609,2770.9,2770.3,3.6097]
[1740276185665,3.60914,2770.8,2770.2,3.99945]
[1740276185871,3.60914,2770.8,2770.3,4.035235]
[1740276186257,3.60914,2770.8,2770.4,0.70516457]
[1740276187997,4.43055,2770.5,2769.8,3.99995]
[1740276188152,0.821,2770.5,2769.9,0.256]
[1740276188352,6.061,2770.7,2770.0,0.3897]
[1740276189101,6.061,2770.7,2770.2,3.60975]
[1740276189253,6.061,2770.7,2770.2,4.009695]
[1740276190204,9.6702,2770.7,2770.2,4.009695]
[1740276191814,6.061,2770.7,2770.2,4.009695]
[1740276192115,6.061,2770.7,2770.3,3.60964]
[1740276192272,6.061,2770.7,2770.2,0.399945]
[1740276192474,9.67022,2770.7,2770.2,4.009775]
[1740276193809,4.43022,2770.7,2770.2,4.009775]
[1740276195182,4.43022,2770.7,2770.2,4.009695]
[1740276195397,4.43022,2770.7,2770.3,0.33811644]
[1740276196818,0.821,2770.7,2770.2,4.009695]
[1740276197026,0.8137,2771.0,2770.5,3.60945]
[1740276197324,0.8137,2771.0,2770.6,3.99901]
[1740276197833,3.8137,2771.0,2770.6,0.3897]
[1740276198005,3.8137,2771.0,2770.6,3.99898]
[1740276198212,3.8137,2771.0,2770.6,0.3897]
[1740276198910,7.42261,2771.0,2770.5,3.60939]
[1740276199107,3.0,2771.0,2770.4,0.72761315]
[1740276199423,4.42965,2770.5,2770.2,0.256]
[1740276200195,3.60965,2770.4,2770.2,0.256]
[1740276201346,3.60971,2770.3,2770.2,0.256]
[1740276201714,3.60958,2770.4,2770.2,0.256]
[1740276201932,7.21924,2770.4,2770.2,0.256]
[1740276203132,3.60958,2770.4,2770.2,0.256]
[1740276203361,3.60971,2770.3,2770.2,0.256]
[1740276203643,0.8202,2770.5,2770.2,0.256]
[1740276204137,4.42968,2770.5,2770.2,0.256]
[1740276205141,3.60959,2770.4,2770.2,0.256]
[1740276205442,4.42968,2770.5,2770.2,0.256]
[1740276205644,3.60971,2770.3,2770.2,0.256]
[1740276206112,3.60971,2770.3,2770.0,0.9649656]
[1740276206612,3.60971,2770.3,2770.0,1.48797022]
[1740276207203,3.60971,2770.3,2770.1,0.33844647]
[1740276207933,3.60958,2770.4,2770.1,0.33844647]
[1740276208339,3.60958,2770.4,2770.0,1.48797022]
[1740276208741,0.8202,2770.5,2770.0,0.77900462]
[1740276208928,3.60978,2770.3,2770.0,0.77900462]